fUST/lending_fUST_20240617
["ID","MTS","AMOUNT","RATE_DAILY","PERIOD"]
[329672120,1718561451664,-10237.56,0.00014377,2]
[329672121,1718561451679,-805.52,0.00014377,2]
[329672122,1718561451696,-500.0,0.00014377,2]
[329672123,1718561451724,-1283.19,0.00014377,2]
[329672124,1718561451749,-998.53,0.00014377,2]
[329672125,1718561451763,-500.0,0.00014378,2]
[329672126,1718561451793,-194.41230376,0.00014378,2]
[329672127,1718561451805,-500.0,0.00014378,2]
[329672128,1718561451824,-511.97519982,0.00014378,2]
[329672129,1718561451835,-500.0,0.00014378,2]
[329672130,1718561451848,-500.0,0.00014378,2]
[329672131,1718561451889,-500.0,0.00014378,2]
[329672132,1718561451904,-500.0,0.00014378,2]
[329672133,1718561451925,-340.12353295,0.00014378,2]
[329672134,1718561451953,-500.0,0.00014378,2]
[329672135,1718561451967,-665.39,0.00014378,2]
[329672136,1718561451990,-500.0,0.00014378,2]
[329672137,1718561452016,-220.453376,0.00014378,2]
[329672138,1718561452080,-500.0,0.00014378,2]
[329672139,1718561452095,-151.0,0.00014378,2]
[329672140,1718561452127,-942.32,0.00014378,2]
[329672141,1718561452164,-500.0,0.00014378,2]
[329672142,1718561452190,-500.0,0.00014378,2]
[329672143,1718561452223,-151.0,0.00014378,2]
[329672144,1718561452249,-151.0,0.00014378,2]
[329672145,1718561452275,-500.0,0.00014378,2]
[329672146,1718561452293,-500.0,0.00014378,2]
[329672147,1718561452308,-500.0,0.00014378,2]
[329672148,1718561452423,-500.0,0.00014378,2]
[329672149,1718561452454,-500.0,0.00014378,2]
[329672150,1718561452466,-500.0,0.00014378,2]
[329672151,1718561452484,-151.0,0.00014378,2]
[329672152,1718561452500,-151.0,0.00014378,2]
[329672153,1718561452511,-500.0,0.00014378,2]
[329672154,1718561452545,-894.5,0.00014378,2]
[329672155,1718561452566,-151.0,0.00014378,2]
[329672156,1718561452577,-151.0,0.00014378,2]
[329672157,1718561452589,-1464.27,0.00014378,2]
[329672158,1718561452616,-500.0,0.00014378,2]
[329672159,1718561452648,-463.990737,0.00014378,2]
[329672160,1718561452663,-463.990737,0.00014378,2]
[329672161,1718561452676,-463.990737,0.00014378,2]
[329672162,1718561452689,-463.990737,0.00014378,2]
[329672163,1718561452708,-500.0,0.00014378,2]
[329672164,1718561452725,-6529.57,0.00014378,2]
[329672165,1718561452739,-500.0,0.00014378,2]
[329672166,1718561452765,-500.0,0.00014378,2]
[329672167,1718561452778,-500.0,0.00014378,2]
[329672168,1718561452791,-810.44,0.00014378,2]
[329672169,1718561452803,-227.836466,0.00014378,2]
[329672170,1718561452840,-227.836466,0.00014378,2]
[329672171,1718561452860,-500.0,0.00014378,2]
[329672172,1718561452873,-500.0,0.00014378,2]
[329672173,1718561452886,-1433.7,0.00014378,2]
[329672174,1718561452919,-587.090674,0.00014378,2]
[329672175,1718561452931,-587.090674,0.00014378,2]
[329672176,1718561452944,-587.090674,0.00014378,2]
[329672177,1718561452968,-671.31,0.00014378,2]
[329672178,1718561452984,-587.090674,0.00014378,2]
[329672179,1718561453031,-587.090674,0.00014378,2]
[329672180,1718561453055,-587.090674,0.00014378,2]
[329672181,1718561453070,-151.0,0.00014378,2]
[329672182,1718561453095,-151.0,0.00014378,2]
[329672183,1718561453108,-151.0,0.00014378,2]
[329672184,1718561453136,-151.0,0.00014378,2]
[329672185,1718561453152,-151.0,0.00014378,2]
[329672186,1718561453192,-151.0,0.00014378,2]
[329672187,1718561453217,-500.0,0.00014378,2]
[329672188,1718561453232,-500.0,0.00014378,2]
[329672189,1718561453245,-184.718329,0.00014378,2]
[329672190,1718561453257,-184.718329,0.00014378,2]
[329672191,1718561453269,-184.718329,0.00014378,2]
[329672192,1718561453282,-184.718329,0.00014378,2]
[329672193,1718561453293,-184.718329,0.00014378,2]
[329672194,1718561453320,-151.0,0.00014378,2]
[329672195,1718561453333,-184.718329,0.00014378,2]
[329672196,1718561453344,-151.0,0.00014378,2]
[329672197,1718561453373,-500.0,0.00014378,2]
[329672198,1718561453386,-500.0,0.00014378,2]
[329672199,1718561453399,-500.0,0.00014378,2]
[329672200,1718561453411,-500.0,0.00014378,2]
[329672201,1718561453431,-313.07464096,0.00014378,2]
[329672202,1718561453484,-500.0,0.00014378,2]
[329672203,1718561453495,-514.81433297,0.00014378,2]
[329672204,1718561453521,-649.59,0.00014378,2]
[329672205,1718561453543,-234.0,0.00014378,2]
[329672206,1718561453554,-234.0,0.00014378,2]
[329672207,1718561453584,-500.0,0.00014378,2]
[329672208,1718561453597,-234.0,0.00014378,2]
[329672209,1718561453609,-234.0,0.00014378,2]
[329672210,1718561453623,-703.71,0.00014378,2]
[329672211,1718561453649,-1190.54,0.00014378,2]
[329672212,1718561453670,-777.49,0.00014378,2]
[329672213,1718561453689,-500.0,0.00014378,2]
[329672214,1718561453703,-500.0,0.00014378,2]
[329672215,1718561453738,-500.0,0.00014378,2]
[329672216,1718561453752,-500.0,0.00014378,2]
[329672217,1718561453765,-500.0,0.00014378,2]
[329672218,1718561453776,-710.88,0.00014378,2]
[329672219,1718561453795,-151.0,0.00014379,2]
[329672220,1718561453844,-151.0,0.00014379,2]
[329672221,1718561453858,-151.0,0.00014379,2]
[329672222,1718561453869,-151.0,0.00014379,2]
[329672223,1718561453901,-151.0,0.00014379,2]
[329672224,1718561453912,-151.0,0.00014379,2]
[329672225,1718561453938,-151.0,0.00014379,2]
[329672226,1718561453950,-176.026206,0.00014379,2]
[329672227,1718561453971,-176.026206,0.00014379,2]
[329672228,1718561453996,-176.026206,0.00014379,2]
[329672229,1718561454039,-176.026206,0.00014379,2]
[329672230,1718561454071,-176.026206,0.00014379,2]
[329672231,1718561454092,-176.026206,0.00014379,2]
[329672232,1718561454112,-624.984743,0.00014379,2]
[329672233,1718561454135,-624.984743,0.00014379,2]
[329672234,1718561454147,-624.984743,0.00014379,2]
[329672235,1718561454159,-624.984743,0.00014379,2]
[329672236,1718561454178,-151.0,0.00014379,2]
[329672237,1718561454190,-151.0,0.00014379,2]
[329672238,1718561454207,-151.0,0.00014379,2]
[329672239,1718561454220,-500.0,0.00014379,2]
[329672240,1718561454253,-151.0,0.00014379,2]
[329672241,1718561454266,-280.453782,0.00014379,2]
[329672242,1718561454284,-463.990737,0.00014379,2]
[329672243,1718561454302,-463.990737,0.00014379,2]
[329672244,1718561454313,-463.990737,0.00014379,2]
[329672245,1718561454324,-463.990737,0.00014379,2]
[329672246,1718561454336,-227.836466,0.00014379,2]
[329672247,1718561454365,-227.836466,0.00014379,2]
[329672248,1718561454391,-227.836466,0.00014379,2]
[329672249,1718561454420,-227.836466,0.00014379,2]
[329672250,1718561454432,-587.090674,0.00014379,2]
[329672251,1718561454457,-587.090674,0.00014379,2]
[329672252,1718561454469,-151.0,0.00014379,2]
[329672253,1718561454483,-231.66199,0.00014379,2]
[329672254,1718561454494,-184.718329,0.00014379,2]
[329672255,1718561454524,-184.718329,0.00014379,2]
[329672256,1718561454535,-234.0,0.00014379,2]
[329672257,1718561454554,-234.0,0.00014379,2]
[329672258,1718561454566,-1190.54,0.00014379,2]
[329672259,1718561454592,-523.22405655,0.0001438,2]
[329672260,1718561454639,-500.0,0.0001438,2]
[329672261,1718561454657,-500.0,0.0001438,2]
[329672262,1718561454673,-500.0,0.0001438,2]
[329672263,1718561454742,-590.99,0.0001438,4]
[329672264,1718561454764,-250.0,0.0001438,2]
[329672265,1718561454784,-500.0,0.0001438,2]
[329672266,1718561454802,-500.0,0.0001438,2]
[329672267,1718561454821,-500.0,0.0001438,2]
[329672268,1718561454837,-151.0,0.0001438,2]
[329672269,1718561454853,-500.0,0.0001438,2]
[329672270,1718561454882,-500.0,0.0001438,2]
[329672271,1718561454914,-609.4,0.0001438,2]
[329672272,1718561454940,-151.0,0.0001438,2]
[329672273,1718561454994,-577.47945447,0.0001438,2]
[329672274,1718561455027,-500.0,0.0001438,2]
[329672275,1718561455058,-512.95036992,0.0001438,2]
[329672276,1718561455080,-500.0,0.0001438,2]
[329672277,1718561455098,-430.54915003,0.0001438,2]
[329672278,1718561455140,-151.0,0.0001438,2]
[329672279,1718561455176,-151.0,0.0001438,2]
[329672280,1718561455198,-500.0,0.0001438,2]
[329672281,1718561455212,-500.0,0.0001438,2]
[329672282,1718561455232,-151.0,0.0001438,2]
[329672283,1718561455244,-151.0,0.0001438,2]
[329672284,1718561455272,-151.0,0.0001438,2]
[329672285,1718561455285,-151.0,0.0001438,2]
[329672286,1718561455301,-176.026206,0.0001438,2]
[329672287,1718561455324,-176.026206,0.0001438,2]
[329672288,1718561455340,-624.984743,0.0001438,2]
[329672289,1718561455354,-624.984743,0.0001438,2]
[329672290,1718561455369,-624.984743,0.0001438,2]
[329672291,1718561455383,-624.984743,0.0001438,2]
[329672292,1718561455424,-151.0,0.0001438,2]
[329672293,1718561455440,-188.376771,0.0001438,2]
[329672294,1718561455458,-247.08401,0.0001438,2]
[329672295,1718561455475,-463.990737,0.0001438,2]
[329672296,1718561455488,-463.990737,0.0001438,2]
[329672297,1718561455504,-227.836466,0.0001438,2]
[329672298,1718561455538,-227.836466,0.0001438,2]
[329672299,1718561455555,-587.090674,0.0001438,2]
[329672300,1718561455577,-587.090674,0.0001438,2]
[329672301,1718561455599,-151.0,0.0001438,2]
[329672302,1718561455615,-184.718329,0.0001438,2]
[329672303,1718561455633,-151.0,0.0001438,2]
[329672304,1718561455673,-184.718329,0.0001438,2]
[329672305,1718561455690,-234.0,0.0001438,2]
[329672306,1718561455711,-234.0,0.0001438,2]
[329672307,1718561455730,-500.0,0.00014382,2]
[329672308,1718561455765,-504.78944374,0.00014382,2]
[329672309,1718561455785,-151.0,0.00014382,2]
[329672310,1718561455812,-176.026206,0.00014382,2]
[329672311,1718561455825,-176.026206,0.00014382,2]
[329672312,1718561455839,-500.0,0.00014382,2]
[329672313,1718561455858,-463.990737,0.00014382,2]
[329672314,1718561455871,-463.990737,0.00014382,2]
[329672315,1718561455892,-151.0,0.00014382,2]
[329672316,1718561455905,-316.19131027,0.00014385,2]
[329672317,1718561455921,-227.0,0.00014385,2]
[329672318,1718561455934,-268.81271361,0.00014388,2]
[329672319,1718561455948,-227.836466,0.00014388,2]
[329672320,1718561455961,-227.836466,0.00014388,2]
[329672321,1718561455976,-281.1,0.00014533,2]
[329672322,1718561455990,-2000.0,0.00014554,2]
[329672323,1718561456010,-500.0,0.00014651,2]
[329672324,1718561456031,-666.34,0.00014651,2]
[329672325,1718561456045,-20597.87,0.00014651,2]
[329672326,1718561456060,-1471.45,0.00014651,2]
[329672327,1718561456073,-3878.38,0.00014651,2]
[329672328,1718561456104,-587.090674,0.00014651,2]
[329672329,1718561456145,-587.090674,0.00014651,2]
[329672330,1718561456178,-151.0,0.00014651,2]
[329672331,1718561456192,-184.718329,0.00014651,2]
[329672332,1718561456246,-184.718329,0.00014651,2]
[329672333,1718561456261,-151.0,0.00014651,2]
[329672334,1718561456284,-500.0,0.00014651,2]
[329672335,1718561456298,-2427.47,0.00014651,2]
[329672336,1718561456328,-500.0,0.00014651,2]
[329672337,1718561456361,-1955.63,0.00014651,2]
[329672338,1718561456374,-500.0,0.00014651,2]
[329672339,1718561456389,-976.74,0.00014651,2]
[329672340,1718561456402,-234.0,0.00014651,2]
[329672341,1718561456415,-234.0,0.00014651,2]
[329672342,1718561456429,-500.0,0.00014651,2]
[329672343,1718561456462,-234.0,0.00014651,2]
[329672344,1718561456483,-234.0,0.00014651,2]
[329672345,1718561456502,-500.0,0.00014651,2]
[329672346,1718561456514,-1190.54,0.00014651,2]
[329672347,1718561456527,-1190.54,0.00014651,2]
[329672348,1718561456541,-2521.38,0.00014651,2]
[329672349,1718561456555,-10237.56,0.00014651,2]
[329672350,1718561456568,-805.52,0.00014651,2]
[329672351,1718561456583,-500.0,0.00014651,2]
[329672352,1718561456601,-1283.19,0.00014651,2]
[329672353,1718561456615,-998.53,0.00014651,2]
[329672354,1718561456633,-500.0,0.00014652,2]
[329672355,1718561456648,-500.0,0.00014652,2]
[329672356,1718561456661,-500.0,0.00014652,2]
[329672357,1718561456673,-500.0,0.00014652,2]
[329672358,1718561456685,-500.0,0.00014652,2]
[329672359,1718561456698,-500.0,0.00014652,2]
[329672360,1718561456720,-624.984743,0.00014652,2]
[329672361,1718561456733,-624.984743,0.00014652,2]
[329672362,1718561456745,-500.0,0.00014652,2]
[329672363,1718561456763,-665.39,0.00014652,2]
[329672364,1718561456777,-500.0,0.00014652,2]
[329672365,1718561456792,-511.34368504,0.00014652,2]
[329672366,1718561456806,-942.32,0.00014652,2]
[329672367,1718561456832,-500.0,0.00014652,2]
[329672368,1718561456846,-450.13132328,0.00014652,2]
[329672369,1718561456862,-500.0,0.00014652,2]
[329672370,1718561456886,-500.0,0.00014652,2]
[329672371,1718561456913,-500.0,0.00014652,2]
[329672372,1718561456928,-500.0,0.00014652,2]
[329672373,1718561456961,-160.34758777,0.00014652,2]
[329672374,1718561456974,-500.0,0.00014652,2]
[329672375,1718561456991,-500.0,0.00014652,2]
[329672376,1718561457005,-894.5,0.00014652,2]
[329672377,1718561457169,-1464.27,0.00014652,2]
[329672378,1718561457182,-500.0,0.00014652,2]
[329672379,1718561457194,-463.990737,0.00014652,2]
[329672380,1718561457208,-463.990737,0.00014652,2]
[329672381,1718561457223,-463.990737,0.00014652,2]
[329672382,1718561457233,-463.990737,0.00014652,2]
[329672383,1718561457246,-500.0,0.00014652,2]
[329672384,1718561457257,-6529.57,0.00014652,2]
[329672385,1718561457295,-202.24,0.00014652,2]
[329672386,1718561457307,-500.0,0.00014652,2]
[329672387,1718561457318,-810.44,0.00014652,2]
[329672388,1718561457331,-227.836466,0.00014652,2]
[329672389,1718561457346,-227.836466,0.00014652,2]
[329672390,1718561457364,-500.0,0.00014652,2]
[329672391,1718561457380,-413.96149309,0.00014652,2]
[329672392,1718561457393,-1433.7,0.00014652,2]
[329672393,1718561457405,-587.090674,0.00014652,2]
[329672394,1718561457416,-587.090674,0.00014652,2]
[329672395,1718561457427,-671.31,0.00014652,2]
[329672396,1718561457440,-587.090674,0.00014652,2]
[329672397,1718561457452,-587.090674,0.00014652,2]
[329672398,1718561457466,-151.0,0.00014652,2]
[329672399,1718561457478,-151.0,0.00014652,2]
[329672400,1718561457496,-542.4063227,0.00014652,2]
[329672401,1718561457507,-500.0,0.00014652,2]
[329672402,1718561457521,-184.718329,0.00014652,2]
[329672403,1718561457541,-184.718329,0.00014652,2]
[329672404,1718561457552,-151.0,0.00014652,2]
[329672405,1718561457572,-151.0,0.00014652,2]
[329672406,1718561457584,-184.718329,0.00014652,2]
[329672407,1718561457608,-184.718329,0.00014652,2]
[329672408,1718561457629,-500.0,0.00014652,2]
[329672409,1718561457642,-500.0,0.00014652,2]
[329672410,1718561457658,-642.37727198,0.00014652,2]
[329672411,1718561457669,-500.0,0.00014652,2]
[329672412,1718561457679,-649.59,0.00014652,2]
[329672413,1718561457690,-234.0,0.00014652,2]
[329672414,1718561457715,-500.0,0.00014652,2]
[329672415,1718561457725,-234.0,0.00014652,2]
[329672416,1718561457736,-703.71,0.00014652,2]
[329672417,1718561457756,-777.49,0.00014652,2]
[329672418,1718561457772,-500.0,0.00014652,2]
[329672419,1718561457785,-500.0,0.00014652,2]
[329672420,1718561457804,-506.30707113,0.00014652,2]
[329672421,1718561457815,-500.0,0.00014652,2]
[329672422,1718561457833,-500.0,0.00014652,2]
[329672423,1718561457874,-710.88,0.00014652,2]
[329672424,1718561457892,-151.0,0.00014653,2]
[329672425,1718561457919,-151.0,0.00014653,2]
[329672426,1718561457940,-151.0,0.00014653,2]
[329672427,1718561457954,-151.0,0.00014653,2]
[329672428,1718561457971,-151.0,0.00014653,2]
[329672429,1718561457998,-151.0,0.00014653,2]
[329672430,1718561458009,-151.0,0.00014653,2]
[329672431,1718561458020,-295.3134,0.00014653,2]
[329672432,1718561458031,-176.026206,0.00014653,2]
[329672433,1718561458043,-176.026206,0.00014653,2]
[329672434,1718561458054,-176.026206,0.00014653,2]
[329672435,1718561458078,-176.026206,0.00014653,2]
[329672436,1718561458092,-176.026206,0.00014653,2]
[329672437,1718561458104,-176.026206,0.00014653,2]
[329672438,1718561458115,-624.984743,0.00014653,2]
[329672439,1718561458131,-624.984743,0.00014653,2]
[329672440,1718561458142,-500.0,0.00014653,2]
[329672441,1718561458155,-463.990737,0.00014653,2]
[329672442,1718561458170,-463.990743,0.00014653,2]
[329672443,1718561458180,-227.836466,0.00014653,2]
[329672444,1718561458205,-227.836466,0.00014653,2]
[329672445,1718561458228,-227.836466,0.00014653,2]
[329672446,1718561458240,-227.836466,0.00014653,2]
[329672447,1718561458280,-587.090674,0.00014653,2]
[329672448,1718561458295,-587.09067395,0.00014653,2]
[329672449,1718561458313,-151.0,0.00014653,2]
[329672450,1718561458329,-184.718329,0.00014653,2]
[329672451,1718561458349,-184.718324,0.00014653,2]
[329672452,1718561458360,-1190.54,0.00014653,2]
[329672453,1718561458396,-500.0,0.00014654,2]
[329672454,1718561458408,-500.0,0.00014654,2]
[329672455,1718561458422,-500.0,0.00014654,2]
[329672456,1718561458435,-590.99,0.00014654,4]
[329672457,1718561458447,-250.0,0.00014654,2]
[329672458,1718561458458,-500.0,0.00014654,2]
[329672459,1718561458469,-500.0,0.00014654,2]
[329672460,1718561458517,-463.27680263,0.00014654,2]
[329672461,1718561458529,-500.0,0.00014654,2]
[329672462,1718561458544,-500.0,0.00014654,2]
[329672463,1718561458554,-609.4,0.00014654,2]
[329672464,1718561458566,-151.0,0.00014654,2]
[329672465,1718561458578,-500.0,0.00014654,2]
[329672466,1718561458595,-500.0,0.00014654,2]
[329672467,1718561458612,-151.0,0.00014654,2]
[329672468,1718561458667,-245.277936,0.00014654,2]
[329672469,1718561458679,-500.0,0.00014654,2]
[329672470,1718561458696,-500.0,0.00014654,2]
[329672471,1718561458714,-151.0,0.00014654,2]
[329672472,1718561458727,-176.026206,0.00014654,2]
[329672473,1718561458754,-176.026206,0.00014654,2]
[329672474,1718561458765,-624.984743,0.00014654,2]
[329672475,1718561458800,-624.984743,0.00014654,2]
[329672476,1718561458813,-624.984743,0.00014654,2]
[329672477,1718561458830,-624.984743,0.00014654,2]
[329672478,1718561458863,-227.836466,0.00014654,2]
[329672479,1718561458913,-227.836462,0.00014654,2]
[329672480,1718561458930,-272.765393,0.00014656,2]
[329672481,1718561458945,-151.0,0.00014656,2]
[329672482,1718561458957,-176.026206,0.00014657,2]
[329672483,1718561458971,-176.026208,0.00014657,2]
[329672484,1718561458984,-788.87997034,0.00014664,2]
[329672485,1718561459016,-1759.0,0.00014689,2]
[329672486,1718561459030,-281.1,0.00014848,2]
[329672487,1718561459056,-500.0,0.00014925,2]
[329672488,1718561459068,-666.34,0.00014925,2]
[329672489,1718561459082,-20597.87,0.00014925,2]
[329672490,1718561459105,-1471.45,0.00014925,2]
[329672491,1718561459125,-3878.38,0.00014925,2]
[329672492,1718561459164,-500.0,0.00014925,2]
[329672493,1718561459203,-2427.47,0.00014925,2]
[329672494,1718561459218,-500.0,0.00014925,2]
[329672495,1718561459232,-1955.63,0.00014925,2]
[329672496,1718561459264,-500.0,0.00014925,2]
[329672497,1718561459316,-976.74,0.00014925,2]
[329672498,1718561459337,-500.0,0.00014925,2]
[329672499,1718561459396,-500.0,0.00014925,2]
[329672500,1718561459425,-1190.54,0.00014925,2]
[329672501,1718561459446,-1190.54,0.00014925,2]
[329672502,1718561459470,-2521.38,0.00014925,2]
[329672503,1718561459491,-10237.56,0.00014925,2]
[329672504,1718561459507,-805.52,0.00014925,2]
[329672505,1718561459523,-500.0,0.00014925,2]
[329672506,1718561459538,-1283.19,0.00014925,2]
[329672507,1718561459566,-998.53,0.00014925,2]
[329672508,1718561459587,-500.0,0.00014926,2]
[329672509,1718561459603,-270.14070736,0.00014926,2]
[329672510,1718561459615,-500.0,0.00014926,2]
[329672511,1718561459628,-563.07189642,0.00014926,2]
[329672512,1718561459652,-500.0,0.00014926,2]
[329672513,1718561459666,-500.0,0.00014926,2]
[329672514,1718561459686,-500.0,0.00014926,2]
[329672515,1718561459701,-665.39,0.00014926,2]
[329672516,1718561459727,-500.0,0.00014926,2]
[329672517,1718561459754,-942.32,0.00014926,2]
[329672518,1718561459785,-500.0,0.00014926,2]
[329672519,1718561459809,-500.0,0.00014926,2]
[329672520,1718561459821,-189.16475963,0.00014926,2]
[329672521,1718561459837,-500.0,0.00014926,2]
[329672522,1718561459869,-500.0,0.00014926,2]
[329672523,1718561459892,-500.0,0.00014926,2]
[329672524,1718561459908,-500.0,0.00014926,2]
[329672525,1718561459920,-500.0,0.00014926,2]
[329672526,1718561459938,-894.5,0.00014926,2]
[329672527,1718561459959,-1464.27,0.00014926,2]
[329672528,1718561459975,-500.0,0.00014926,2]
[329672529,1718561459990,-500.0,0.00014926,2]
[329672530,1718561460002,-6529.57,0.00014926,2]
[329672531,1718561460052,-500.0,0.00014926,2]
[329672532,1718561460083,-810.44,0.00014926,2]
[329672533,1718561460098,-500.0,0.00014926,2]
[329672534,1718561460108,-1433.7,0.00014926,2]
[329672535,1718561460120,-671.31,0.00014926,2]
[329672536,1718561460140,-500.0,0.00014926,2]
[329672537,1718561460160,-500.0,0.00014926,2]
[329672538,1718561460190,-500.0,0.00014926,2]
[329672539,1718561460204,-500.0,0.00014926,2]
[329672540,1718561460261,-649.59,0.00014926,2]
[329672541,1718561460282,-500.0,0.00014926,2]
[329672542,1718561460299,-703.71,0.00014926,2]
[329672543,1718561460311,-777.49,0.00014926,2]
[329672544,1718561460324,-500.0,0.00014926,2]
[329672545,1718561460344,-500.0,0.00014926,2]
[329672546,1718561460356,-500.0,0.00014926,2]
[329672547,1718561460367,-500.0,0.00014926,2]
[329672548,1718561460380,-710.88,0.00014926,2]
[329672549,1718561460394,-624.984743,0.00014927,2]
[329672550,1718561460407,-624.984743,0.00014927,2]
[329672551,1718561460450,-624.984743,0.00014927,2]
[329672552,1718561460468,-624.98473981,0.00014927,2]
[329672553,1718561460488,-500.0,0.00014927,2]
[329672554,1718561460500,-1190.54,0.00014927,2]
[329672555,1718561460524,-500.0,0.00014928,2]
[329672556,1718561460545,-500.0,0.00014928,2]
[329672557,1718561460575,-500.0,0.00014928,2]
[329672558,1718561460590,-590.99,0.00014928,4]
[329672559,1718561460618,-250.0,0.00014928,2]
[329672560,1718561460635,-500.0,0.00014928,2]
[329672561,1718561460646,-512.27467619,0.00014928,2]
[329672562,1718561460657,-500.0,0.00014928,2]
[329672563,1718561460671,-500.0,0.00014928,2]
[329672564,1718561460681,-609.4,0.00014928,2]
[329672565,1718561460694,-500.0,0.00014928,2]
[329672566,1718561460705,-500.0,0.00014928,2]
[329672567,1718561460717,-500.0,0.00014928,2]
[329672568,1718561460729,-500.0,0.00014928,2]
[329672569,1718561460759,-690.8836,0.00015,2]
[329672570,1718561460772,-1000.0,0.00015,6]
[329672571,1718561460809,-1100.27196223,0.00015,2]
[329672572,1718561460836,-500.0,0.00015094,2]
[329672573,1718561460848,-500.0,0.00015094,2]
[329672574,1718561460864,-1190.54,0.00015094,2]
[329672575,1718561460879,-57873.98156072,0.00015095,2]
[329672576,1718561460892,-281.1,0.00015164,2]
[329672577,1718561460903,-500.0,0.00015199,2]
[329672578,1718561460924,-666.34,0.00015199,2]
[329672579,1718561460936,-20597.87,0.00015199,2]
[329672580,1718561460965,-1471.45,0.00015199,2]
[329672581,1718561460981,-3878.38,0.00015199,2]
[329672582,1718561460993,-500.0,0.00015199,2]
[329672583,1718561461005,-2427.47,0.00015199,2]
[329672584,1718561461017,-500.0,0.00015199,2]
[329672585,1718561461031,-1955.63,0.00015199,2]
[329672586,1718561461058,-500.0,0.00015199,2]
[329672587,1718561461070,-976.74,0.00015199,2]
[329672588,1718561461094,-500.0,0.00015199,2]
[329672589,1718561461107,-500.0,0.00015199,2]
[329672590,1718561461133,-1190.54,0.00015199,2]
[329672591,1718561461180,-1190.54,0.00015199,2]
[329672592,1718561461193,-2521.38,0.00015199,2]
[329672593,1718561461219,-10237.56,0.00015199,2]
[329672594,1718561461252,-805.52,0.00015199,2]
[329672595,1718561461264,-612.06002195,0.00015199,2]
[329672596,1718561461275,-1283.19,0.00015199,2]
[329672597,1718561461289,-998.53,0.00015199,2]
[329672598,1718561461302,-500.0,0.000152,2]
[329672599,1718561461318,-500.0,0.000152,2]
[329672600,1718561461332,-500.0,0.000152,2]
[329672601,1718561461348,-500.0,0.000152,2]
[329672602,1718561461363,-500.0,0.000152,2]
[329672603,1718561461386,-665.39,0.000152,2]
[329672604,1718561461401,-500.0,0.000152,2]
[329672605,1718561461416,-942.32,0.000152,2]
[329672606,1718561461435,-500.0,0.000152,2]
[329672607,1718561461457,-608.14126702,0.000152,2]
[329672608,1718561461469,-534.44249228,0.000152,2]
[329672609,1718561461481,-500.0,0.000152,2]
[329672610,1718561461497,-500.0,0.000152,2]
[329672611,1718561461510,-500.0,0.000152,2]
[329672612,1718561461525,-894.5,0.000152,2]
[329672613,1718561461546,-1464.27,0.000152,2]
[329672614,1718561461570,-252.4475168,0.000152,2]
[329672615,1718561461589,-500.0,0.000152,2]
[329672616,1718561461605,-6529.57,0.000152,2]
[329672617,1718561461621,-500.0,0.000152,2]
[329672618,1718561461646,-810.44,0.000152,2]
[329672619,1718561461667,-500.0,0.000152,2]